Cogmind - Beta 14 @@@ ROGUE MODE // 2025.05.05 @ 07:31:33 Player: buwwet Result: Self-destructed Performance ------------- Evolutions (2) 1000 Regions Visited (7) 1400 Robots Destroyed (32) 160 Value Destroyed (687) 687 Prototype IDs (28) 560 Alien Tech Used (0) 0 Bonus (300) 300 TOTAL SCORE: 4107 Bonus ------- Aligned with FarCom 300 Cogmind --------- Core Integrity 550/550 Matter 280/300 Energy 150/150 System Corruption 0% Temperature Cool (0) Movement Rolling (120) Ox2 Location -8/Materials Parts ------- > --- POWER (1) -------- Micro Nuclear Core > --- PROPULSION (4) --- Light Treads Light Treads Armored Wheel Armored Wheel > --- UTILITY (3) ------ Improved Heat Sink High-capacity Storage Unit Improved Medium Armor Plating > --- WEAPON (3) ------- EM Shotgun Improved Assault Rifle Scythe > --- INVENTORY (20) --- Improved Ion Engine Light Nuclear Core Light Nuclear Core Improved Deuterium Engine Micro Nuclear Core Armored Wheel Weight Redist. System Machine Analyzer Improved Terrain Scanner Cloak of Protection Medium Armor Plating Improved Medium Armor Plating Medium Reactive Plating Improved EM Shotgun Improved EM Shotgun Improved EM Shotgun Advanced Beam Rifle Beamcaster Light Cannon Improved Grenade Launcher Peak State ------------ > --- POWER ------------ Improved Ion Engine > --- PROPULSION ------- Light Treads Light Treads Armored Wheel Armored Wheel > --- UTILITY ---------- Improved Heat Sink High-capacity Storage Unit Cloak of Protection > --- WEAPON ----------- EM Shotgun Improved Assault Rifle Scythe > --- INVENTORY -------- Ion Engine Improved Ion Engine Light Nuclear Core Light Nuclear Core Micro Nuclear Core Micro Nuclear Core Light Treads Armored Wheel Weight Redist. System Improved Terrain Scanner Medium Armor Plating Improved Medium Armor Plating Improved EM Shotgun Improved EM Shotgun Improved EM Shotgun Advanced Beam Rifle Beamcaster Light Cannon [Rating: 33] Favorites ----------- Power Improved Ion Engine Engine Improved Ion Engine Power Core Micro Nuclear Core Propulsion Light Treads Treads Light Treads Wheel Armored Wheel Utility Improved Heat Sink Device Improved Heat Sink Storage Medium Storage Unit Protection Medium Armor Plating Weapon Improved Assault Rifle Energy Gun Improved EM Shotgun Energy Cannon Beam Cannon Ballistic Gun Improved Assault Rifle Slashing Weapon Scythe Build | -11 -10 -10 -9 -9 -9 -8 -8 ------- Run | Yrd Mat Min Mat Min Exi Min Mat Slots Evolved 4 | . . . 2 . . . 2 Power . | . . . . . . . . Propulsion 2 | . . . 1 . . . 1 Utility 1 | . . . 1 . . . . Weapon 1 | . . . . . . . 1 Parts Attached 67 | 6 11 10 16 3 4 3 14 Power 7 | 1 1 2 . . . . 3 Engine 5 | 1 1 2 . . . . 1 Core 2 | . . . . . . . 2 Reactor . | . . . . . . . . Propulsion 15 | 2 3 2 6 . . . 2 Treads 9 | 1 2 1 4 . . . 1 Leg . | . . . . . . . . Wheel 6 | 1 1 1 2 . . . 1 Hover . | . . . . . . . . Flight . | . . . . . . . . Utility 30 | 1 4 4 7 3 4 3 4 Device 16 | . 2 2 4 2 3 1 2 Storage 3 | 1 1 . . . 1 . . Processor . | . . . . . . . . Hackware . | . . . . . . . . Protection 11 | . 1 2 3 1 . 2 2 Artifact . | . . . . . . . . Weapon 15 | 2 3 2 3 . . . 5 Energy Gun 6 | . . . 2 . . . 4 Energy Cannon 2 | . 1 1 . . . . . Ballistic Gun 6 | 2 2 1 1 . . . . Ballistic Cannon . | . . . . . . . . Launcher . | . . . . . . . . Special Weapon . | . . . . . . . . Impact Weapon . | . . . . . . . . Slashing Weapon 1 | . . . . . . . 1 Piercing Weapon . | . . . . . . . . Special Melee Weapon . | . . . . . . . . Unidentified Prototypes 7 | . . . 2 . 2 . 3 Parts Lost 1 | . . 1 . . . . . Power . | . . . . . . . . Propulsion . | . . . . . . . . Utility 1 | . . 1 . . . . . Weapon . | . . . . . . . . Highest Loss Streak 1 | . . 1 . . . . . To Critical Strikes . | . . . . . . . . Average Slot Usage (%) 99 | . 99 100 100 100 100 100 99 Engine 9 | . 14 14 11 11 11 11 6 Core 1 | . . . . . . . 2 Treads 19 | . 15 16 23 22 22 22 18 Wheel 13 | . 12 11 9 11 11 11 18 Device 13 | . 10 7 17 21 22 14 10 Storage 10 | . 14 14 11 11 11 11 9 Protection 4 | . 2 7 4 . . 7 7 Energy Gun 8 | . . . . 11 11 11 13 Energy Cannon 3 | . 2 14 10 . . . . Ballistic Gun 11 | . 25 14 11 11 11 11 9 Slashing Weapon 1 | . . . . . . . 4 Peak Build Rating 33 | 6 8 12 21 21 26 21 33 Average Rating 20 | 4 7 9 16 20 21 20 27 On Entrance 13 | . 6 8 12 21 21 21 20 Naked Turns . | . . . . . . . . Heaviest Build 64 | 10 23 26 31 25 55 61 64 Greatest Support 60 | 20 40 20 60 12 12 12 24 Greatest Overweight (x) 5 | . 2 2 3 2 4 5 2 Average Overweight (x) 1 | . . 1 2 2 2 4 2 Largest Inventory Capacity 20 | 8 10 10 10 10 20 20 20 Average Capacity 14 | 7 9 10 10 10 11 20 20 Most Carried 20 | 5 10 10 10 10 10 10 20 Average Carried 11 | 2 8 9 9 10 9 10 14 Final Capacity 20 | 8 10 10 10 10 20 20 20 Final Carried 20 | 5 10 10 10 10 10 10 20 Class Distribution -------------------- 44% | Scavenger-Mutant 33% | Mutant 22% | Scavenger-Skirmisher Dominant Class ---------------- Mutant | -10/Materials Mutant | -10/Mines Scavenger-Mutant | -9/Materials Scavenger-Mutant | -9/Mines Scavenger-Mutant | -9/Exiles Scavenger-Mutant | -8/Mines Scavenger-Skirmisher | -8/Materials Resources | -11 -10 -10 -9 -9 -9 -8 -8 ----------- Run | Yrd Mat Min Mat Min Exi Min Mat Matter Collected 1135 | 174 292 121 151 138 . 102 157 Remotely . | . . . . . . . . Salvage Created 1173 | . 280 133 265 98 . 44 353 Parts 67 | . 12 13 19 4 . 3 16 Haulers Intercepted 5 | . 1 . 1 . . . 3 Recyclers Shooed . | . . . . . . . . Parts Field Recycled . | . . . . . . . . Retrieved Matter . | . . . . . . . . Parts Self-Destructed . | . . . . . . . . Prevented . | . . . . . . . . Kills | -11 -10 -10 -9 -9 -9 -8 -8 ------- Run | Yrd Mat Min Mat Min Exi Min Mat Combat Hostiles Destroyed 24 | . 4 7 6 2 . 3 2 Guns 17 | . 4 3 4 2 . 2 2 Cannons 6 | . . 4 2 . . . . AOE 1 | . . . . . . 1 . Classes Destroyed 7 | . 3 2 . . . . 2 Tunneler 1 | . 1 . . . . . . Hauler 5 | . 1 . 1 . . . 3 Recycler 1 | . . . . . . . 1 Watcher 1 | . . . . . . . 1 Swarmer 11 | . . 6 2 . . 3 . Grunt 11 | . 4 . 3 2 . . 2 Sentry 2 | . . 1 1 . . . . Best Kill Streak 6 | . 3 6 2 2 . 3 2 Combat Bots Only 6 | . 2 6 2 2 . 3 1 Max Kills in Single Turn 2 | . 2 2 1 2 . 1 2 Gunslinging 1 | . . . . 1 . . . Exploded 1 | . . . . . . 1 . Melee . | . . . . . . . . Uniques/NPCs Destroyed . | . . . . . . . . Combat | -11 -10 -10 -9 -9 -9 -8 -8 -------- Run | Yrd Mat Min Mat Min Exi Min Mat Hostile Shots Fired 110 | . 30 22 40 5 . 13 . Missed 29 | . 9 9 6 2 . 3 . Damage Taken 926 | . 291 99 352 40 . 118 26 Core 77 | . 39 . 38 . . . . Absorbed by Shields . | . . . . . . . . Core Remaining (%) 91 | 100 . 84 . . . 90 . Volleys Fired 70 | . 17 12 25 2 . 5 9 Largest 3 | . 2 2 2 2 . 2 3 Hottest 113 | . 60 80 83 68 . 68 113 Shots Fired 148 | . 33 24 50 4 1 9 27 Gun 110 | . 32 12 25 4 1 9 27 Cannon 38 | . 1 12 25 . . . . Launcher . | . . . . . . . . Special . | . . . . . . . . Kinetic 86 | . 32 12 25 2 1 5 9 Thermal 38 | . 1 12 25 . . . . Explosive . | . . . . . . . . Electromagnetic 24 | . . . . 2 . 4 18 Robot Hit Streak 12 | . 12 6 7 5 . 6 8 Robot Miss Streak 3 | . 2 3 3 1 . 2 2 Penetration Max . | . . . . . . . . Secondary Targets 3 | . 1 . . 1 . 1 . Max Gunslinging Chain 1 | . 1 . . 1 . 1 . Shots Hit Robots 101 | . 26 12 31 4 . 6 22 Core Hits 52 | . 13 8 10 4 . 3 14 Critical Kills . | . . . . . . . . Critical Parts Destroyed . | . . . . . . . . Critical Strikes . | . . . . . . . . Melee Attacks 2 | . . . . . . . 2 Impact . | . . . . . . . . Slashing 2 | . . . . . . . 2 Piercing . | . . . . . . . . Sneak Attacks . | . . . . . . . . Combat Hostiles . | . . . . . . . . Follow-up Attacks . | . . . . . . . . Damage Inflicted 1736 | . 368 204 501 63 . 136 464 Guns 1113 | . 368 63 207 63 . 95 317 Cannons 435 | . . 141 294 . . . . Explosions 188 | . . . . . . 41 147 Melee . | . . . . . . . . Ramming . | . . . . . . . . Kinetic 788 | . 368 63 207 30 . 49 71 Thermal 623 | . . 141 294 . . 41 147 Explosive . | . . . . . . . . Electromagnetic 325 | . . . . 33 . 46 246 Impact . | . . . . . . . . Slashing . | . . . . . . . . Piercing . | . . . . . . . . Highest Corruption 1 | . . . 1 1 1 1 . Average Corruption 1 | . . . 1 1 1 1 . Corruption Purged . | . . . . . . . . Corruption Blocked . | . . . . . . . . Effects 8 | . . . 2 2 4 . . Message Errors 2 | . . . 2 . . . . Matter Fused 4 | . . . . 1 3 . . Data Loss (major) 1 | . . . . 1 . . . Misfires 1 | . . . . . 1 . . Overload Shots . | . . . . . . . . Overflow Damage 9 | . . . . . . . 9 Projectiles . | . . . . . . . . Explosions 9 | . . . . . . . 9 Melee . | . . . . . . . . Knockbacks . | . . . . . . . . Impact . | . . . . . . . . Kinetic . | . . . . . . . . Secondary . | . . . . . . . . Self-Inflicted Damage 58 | . . . . . . 31 27 Shots 2 | . . . . . . 1 1 Rammed . | . . . . . . . . Targets Rammed . | . . . . . . . . Kicked . | . . . . . . . . Crushed . | . . . . . . . . Highest Temperature 181 | . 26 135 181 . . 1 10 Average Temperature 29 | . 9 42 78 . . 1 3 Received Heat Transfer 318 | . 165 . 132 21 . . . Siege Activations . | . . . . . . . . Robots Corrupted . | . . . . . . . . Combat Hostiles . | . . . . . . . . Parts Fried . | . . . . . . . . Impact Corruptions . | . . . . . . . . Robots Melted . | . . . . . . . . Combat Hostiles . | . . . . . . . . Parts Melted 3 | . . 2 1 . . . . Heat Transferred 1125 | . . 296 629 . . 50 150 Parts Sabotaged . | . . . . . . . . Parts Stolen . | . . . . . . . . Parts Stripped . | . . . . . . . . Power Chain Reactions 3 | . . . . . . 1 2 Alert | -11 -10 -10 -9 -9 -9 -8 -8 ------- Run | Yrd Mat Min Mat Min Exi Min Mat Peak Influence 311 | . 132 231 311 171 . 73 119 Initial 121 | . . 51 89 121 . . 27 Average 98 | . 59 172 180 169 . 60 44 Maximum Alert Level 1 | . . 1 1 . . . . Low Security (%) 84 | 100 100 32 58 100 . 100 100 Level 1 15 | . . 67 41 . . . . Level 2 . | . . . . . . . . Level 3 . | . . . . . . . . Level 4 . | . . . . . . . . Level 5 . | . . . . . . . . High Security . | . . . . . . . . Max Security . | . . . . . . . . Squads Dispatched 3 | . 1 . 1 . . . 1 Investigation . | . . . . . . . . Extermination . | . . . . . . . . Reinforcement 3 | . 1 . 1 . . . 1 Assault . | . . . . . . . . Garrison . | . . . . . . . . Intercept . | . . . . . . . . Searches Triggered . | . . . . . . . . Construction Impeded 1 | . . . . . . . 1 Haulers Reinforced . | . . . . . . . . Active Scanning Responses . | . . . . . . . . Cargo Convoy Interrupts . | . . . . . . . . Stealth | -11 -10 -10 -9 -9 -9 -8 -8 --------- Run | Yrd Mat Min Mat Min Exi Min Mat Distress Signals 2 | . . . 2 . . . . Communications Jammed . | . . . . . . . . Distress Signals . | . . . . . . . . Times Spotted 40 | . 6 10 15 2 . 3 4 Peak Tracking Total 5 | . 3 5 5 2 . 3 1 Tactical Retreats 1 | . . 1 . . . . . Traps | -11 -10 -10 -9 -9 -9 -8 -8 ------- Run | Yrd Mat Min Mat Min Exi Min Mat Traps Triggered 1 | . . . 1 . . . . Indirectly . | . . . . . . . . Trap Hack Attempts . | . . . . . . . . Triggered . | . . . . . . . . Disarmed . | . . . . . . . . Reprogrammed . | . . . . . . . . Reused . | . . . . . . . . Traps Extracted . | . . . . . . . . Installed . | . . . . . . . . Triggered . | . . . . . . . . Machines | -11 -10 -10 -9 -9 -9 -8 -8 ---------- Run | Yrd Mat Min Mat Min Exi Min Mat Machines Disabled . | . . . . . . . . Max in Single Turn . | . . . . . . . . Machines Repaired . | . . . . . . . . Machines Dismantled . | . . . . . . . . Machines Sabotaged . | . . . . . . . . Overloaded Fab Kills . | . . . . . . . . Hacking | -11 -10 -10 -9 -9 -9 -8 -8 --------- Run | Yrd Mat Min Mat Min Exi Min Mat Machines Accessed 7 | . 1 . 3 . 1 . 2 Terminals 6 | . 1 . 3 . . . 2 Fabricators . | . . . . . . . . Repair Stations . | . . . . . . . . Recycling Units . | . . . . . . . . Scanalyzers . | . . . . . . . . Garrison Access . | . . . . . . . . Total Hacks 20 | . 2 . 14 . 1 . 3 Successful 8 | . 1 . 4 . 1 . 2 Failed 12 | . 1 . 10 . . . 1 Catastrophic 3 | . 1 . 2 . . . . Database Lockouts . | . . . . . . . . Manual 9 | . . . 7 . 1 . 1 Terminals 19 | . 2 . 14 . . . 3 Fabricators . | . . . . . . . . Repair Stations . | . . . . . . . . Recycling Units . | . . . . . . . . Scanalyzers . | . . . . . . . . Garrison Access . | . . . . . . . . Terminal Hacks 8 | . 1 . 4 . 1 . 2 Locate Traps 1 | . . . . . . . 1 Hauler Manifests 3 | . 1 . 1 . . . 1 Registered Components 1 | . . . 1 . . . . Zone Layout 2 | . . . 2 . . . . Derelict Proto ID Bank 1 | . . . . . 1 . . Fabricator Hacks . | . . . . . . . . Repair Station Hacks . | . . . . . . . . Recycling Unit Hacks . | . . . . . . . . Scanalyzer . | . . . . . . . . Garrison Access Hacks . | . . . . . . . . Unauthorized Hacks . | . . . . . . . . Terminals . | . . . . . . . . Fabricators . | . . . . . . . . Repair Stations . | . . . . . . . . Recycling Units . | . . . . . . . . Scanalyzers . | . . . . . . . . Garrison Access . | . . . . . . . . Data Cores Recovered . | . . . . . . . . Used . | . . . . . . . . Hacking Detections 6 | . 1 . 3 . . . 2 Full Trace Events . | . . . . . . . . Feedback Events . | . . . . . . . . Feedback Blocked . | . . . . . . . . Robot Schematics Acquired . | . . . . . . . . Robots Built . | . . . . . . . . Authchips . | . . . . . . . . Time . | . . . . . . . . Total Robot Build Rating . | . . . . . . . . Part Schematics Acquired . | . . . . . . . . Parts Built . | . . . . . . . . Authchips . | . . . . . . . . Time . | . . . . . . . . Total Part Build Rating . | . . . . . . . . Parts Repaired . | . . . . . . . . Time . | . . . . . . . . Parts Recycled . | . . . . . . . . Recycled Matter . | . . . . . . . . Retrieved Matter . | . . . . . . . . Retrieved Components . | . . . . . . . . Parts Scanalyzed . | . . . . . . . . Part Schematics Acquired . | . . . . . . . . Parts Damaged . | . . . . . . . . Bothacking | -11 -10 -10 -9 -9 -9 -8 -8 ------------ Run | Yrd Mat Min Mat Min Exi Min Mat Used RIF Installer . | . . . . . . . . Robots Hacked . | . . . . . . . . Non-combat . | . . . . . . . . Combat . | . . . . . . . . Robot Hacks Applied . | . . . . . . . . Relay Couplers Released . | . . . . . . . . Fabnet Peak Effective % . | . . . . . . . . Robots Rewired . | . . . . . . . . Allies Hacked . | . . . . . . . . Hacks Repelled . | . . . . . . . . Allies | -11 -10 -10 -9 -9 -9 -8 -8 -------- Run | Yrd Mat Min Mat Min Exi Min Mat Total Allies . | . . . . . . . . Largest Group . | . . . . . . . . Highest-Rated Group . | . . . . . . . . Highest-Rated Ally . | . . . . . . . . Total Orders . | . . . . . . . . Ally Attacks . | . . . . . . . . Total Damage . | . . . . . . . . Kills . | . . . . . . . . Allies Corrupted . | . . . . . . . . Allies Melted . | . . . . . . . . Intel | -11 -10 -10 -9 -9 -9 -8 -8 ------- Run | Yrd Mat Min Mat Min Exi Min Mat Robot Analysis Total . | . . . . . . . . Derelict Logs Recovered . | . . . . . . . . Drone Launches . | . . . . . . . . Drone Recoveries . | . . . . . . . . Exploration | -11 -10 -10 -9 -9 -9 -8 -8 ------------- Run | Yrd Mat Min Mat Min Exi Min Mat Turns Passed 2683 | 40 230 304 399 240 345 53 1072 Spaces Moved 1447 | 33 151 185 209 184 266 22 397 Core 3 | 3 . . . . . . . Treads 35 | 1 8 16 10 . . . . Legs . | . . . . . . . . Wheels 1409 | 29 143 169 199 184 266 22 397 Hover . | . . . . . . . . Flight . | . . . . . . . . Fastest Speed 50 | 50 80 95 105 120 105 150 120 Average Speed 117 | 79 99 120 118 120 123 156 120 Slowest Speed 240 | 160 160 240 240 120 150 165 120 Overloaded Moves . | . . . . . . . . Propulsion Burnouts . | . . . . . . . . Robots Hopped . | . . . . . . . . Cave-ins Triggered . | . . . . . . . . Exploration Rate (%) 31 | 3 30 37 25 57 60 10 31 Regions Visited 7 Branch Regions 4 Pre-discovered Areas . | . . . . . . . . Known Exits Taken . | . . . . . . . . Unknown Exits Taken 7 | 1 1 1 1 1 1 1 . Scrap Searched 2 | . . 1 . 1 . . . Spaces Dug 2 | . . . . . . . 2 Terrain Destroyed 14 | . . . . . . 3 11 Melee 2 | . . . . . . . 2 Projectile . | . . . . . . . . AOE 12 | . . . . . . 3 9 Terrain Rammed . | . . . . . . . . Walls Destroyed . | . . . . . . . . Machines Disabled . | . . . . . . . . Actions | -11 -10 -10 -9 -9 -9 -8 -8 --------- Run | Yrd Mat Min Mat Min Exi Min Mat Total 2276 | 43 200 240 311 198 285 30 969 Wait 610 | . 2 26 42 9 10 1 520 Move 1440 | 32 150 184 208 183 265 21 397 Hop . | . . . . . . . . Pick Up 43 | 5 10 3 8 . 1 . 16 Fast Attach 20 | 6 1 2 3 . 3 . 5 Attach 6 | . . 1 2 . . . 3 Detach 1 | . . . . . . . 1 Swap 41 | . 10 7 11 3 1 3 6 Drop 43 | . 10 5 12 1 5 . 10 Fire 70 | . 17 12 25 2 . 5 9 Melee 2 | . . . . . . . 2 Ram . | . . . . . . . . Kick . | . . . . . . . . Crush . | . . . . . . . . Escape Stasis . | . . . . . . . . Rewire . | . . . . . . . . Trap . | . . . . . . . . Miscellaneous . | . . . . . . . . Route ------- -11/Scrapyard -10/Materials -10/Mines -9/Materials -9/Mines -9/Exiles -8/Mines -8/Materials History --------- Turn | Location | Event 15 | -11/Scrapyard | Discovered new exit (range 16) 41 | -11/Scrapyard | Entered Materials 165 | -10/Materials | Discovered new exit (range 10) 271 | -10/Materials | Entered Mines 316 | -10/Mines | Build established: Mutant 454 | -10/Mines | Joined a pair of Derelicts in attacking an 0b10 outpost 570 | -10/Mines | Discovered new exit (range 4) 575 | -10/Mines | Entered Materials 575 | -9/Materials | Evolved 2 slots: Propulsion x1, Utility x1 712 | -9/Materials | Discovered new exit (range 12) 885 | -9/Materials | Build established: Scavenger-Mutant 974 | -9/Materials | Entered Mines 1184 | -9/Mines | Found a hidden stash of uninstalled traps 1186 | -9/Mines | Received a Rocket Launcher from a helpful Derelict 1209 | -9/Mines | Deemed a non-threat by the Exiles lab entrance 1209 | -9/Mines | Discovered new exit (range 5) 1214 | -9/Mines | Entered Exiles 1243 | -9/Exiles | Met 8R-AWN 1265 | -9/Exiles | Met EX-HEX 1296 | -9/Exiles | Met EX-BIN 1312 | -9/Exiles | Aligned with FarCom system 1313 | -9/Exiles | Given EX-Vault access code 1351 | -9/Exiles | Opened EX-Vault 1355 | -9/Exiles | Found Prototype Device 1355 | -9/Exiles | Identified Cloak of Protection 1369 | -9/Exiles | Found Prototype Device 1369 | -9/Exiles | Identified PSU Rigger 1408 | -9/Exiles | Warned to stay clear of 0b10 Research branches 1446 | -9/Exiles | Met EX-DEC 1541 | -9/Exiles | Discovered new exit (range 14) 1559 | -9/Exiles | Left Exiles lab with Cloak of Protection 1559 | -9/Exiles | Entered Mines 1595 | -8/Mines | Discovered new exit (range 10) 1612 | -8/Mines | Entered Materials 1612 | -8/Materials | Evolved 2 slots: Propulsion x1, Weapon x1 1888 | -8/Materials | Build established: Scavenger-Skirmisher 2668 | -8/Materials | Build established: Mutant 2684 | -8/Materials | Self-destructed Last Messages --------------- 3x Imp. Assault Rifle A-02 Transporter 3x Imp. Medium Laser (1 escort) >>Traps(Locate) Found 6 traps in 1 array: 6x Blade Trap Map updated. 02434_ K-01 Serf cleans the Terminal. 02472_ Acquired Med. Reactive Plating. 02473_ Dropped Ion Engine. 02477_ Acquired Imp. Deuterium Engine. 02511_ Acquired Imp. Grenade Launcher. 02536_ Acquired Machine Analyzer. 02591_ Connecting with Terminal... 02639_ Dropped Mic. Nuclear Core. 02643_ Acquired Prototype Engine. 02643_ Identified Cld. Ion Engine. 02645_ Dropped Cld. Ion Engine. 02647_ Acquired Mic. Nuclear Core. Map ----- +----------------------------------------------------+ | | | | | | | ??????????????????????##############????????????? | | ??????????????????????# #?????######## | | ?????????##########???# " """"" #?????# # | | ?????????# ! #???# """"""""" #?????# # | | ?????????#/ """ #???# """ """ ####### * # | | ?????????# """ #???# # # # | | ?????????# """ #####+#####+###### # # | | ?????????# + + # | | ?????????# = """ ##### ###### # # | | ?????????# """ #???# ## ##????# # # | | ?????????# """ #???# ## #?????####### # | | ?????????# #???# ## #???????????######## | | ?????????#+###+######## ## #??????????????????? | | ?????????# # ^ ^ ##+########???????????? | | ?????????# #? ^ ^ # #???????????? | | ?????????# ####[[! ^ ]# #???????????? | | ?????????# #??#^!/ """ # #???????????? | | ?????????# #?##[[ """ # """ """ #???????????? | | ??######## #?#T! """ = # """ """ #???????????? | | ??? # #??# [ + """ """ #???????????? | | ???"""" # #??# ] # """ """ ????????????? | | ??""""" # #??# ###### ## ?????????????? | | ??""""" # #### ##* @##########?????######## | | ??""""" + ##** # """ #??????# ? | | ??""""" # ##!! # """"" ######## ?? | | ??""""" ##+### ##!* + """"" # """ # ??? | | ??""""" # ???# ##!! u# """"" # "Y" !# #???? | | ?? #????o ##!! # """ # # ##### | | ?#########????# ###### + # # # | | ??????????????# #????# # # %+ + | | ??????????????# #???## ######### *# # | | ??????????????# #???#! ############### # | | ?????#????????# #???# T # !! | | ?????????????## "" # ! | | ??????????????# ############### ##### | | ??????????????# #############??????????# #???? | | ??????????????# # ! #???######## ##### | | ??????????????+ + #???# | | ??????????????# # ##??# % | | ??????????????# # """ """ #???# | | ??????????????# # """ """ #???# %#"######### | | ?#?????? ???? # # """ """ #?#?# ## #?# | | ??????????????# # #???# ## """#? | | ??????????????# #############??## ## """#? | | ??????????????# #?#?#######?????# ## """#? | | ???????######## ##### #?????# ## = #? | | ???????# #???#?# ## """#? | +----------------------------------------------------+ Best States ------------- Heat Dissipation 45 Energy Generation 15 Energy Capacity 265 Matter Stores 300 Matter Capacity 300 Sight Range 16 Robot Scan Range 14 Terrain Scan Range 16 Terrain Scan Density 10 Cloak Strength 5 Armor Coverage 225 Evasion (%) 44 Recoil Reduction 3 Item Schematics ----------------- None Robot Schematics ------------------ None Fabricated ------------ Nothing Alien Tech Used ----------------- None Achievements -------------- None Challenges ------------ None Game ------ Seed MasterSpacefoldAxe Manual? 0 Play Time 00:30:07 Cumulative 42.2 hours Start 2024.12.26 @ 09:09:33 End 2025.05.05 @ 07:31:33 Sessions 3 Manual Loads 0 Difficulty Rogue Special Mode None Game No. 43 Rogue 43 Adventurer 0 Explorer 0 Win Type - Total 0 Types 0/0/0/0/0/0/0/0/0 Lore% 24 Gallery% 33 Achievement% 30 Wizard Run 0 Options --------- Layout 1 ASCII 0 Keyboard 0 Movement Arrows Keybinds 0 Fullscreen 2 Font 24/Terminus Map View 50x35 Zoom Use 0% Tactical HUD 1 Map Filters NONE Filters NONE Steam 1 RUN: 6544f563-b1b3-4654-bc73-299c71b3efa2